[Event "Titled Tuesday Blitz May 2 Early 2023"]
[White "Gutkin, Ilya"]
[Black "Hajiyev, Kanan"]
[WhiteFideId "16203470"]
[BlackFideId "13404148"]
[WhiteElo "2265"]
[BlackElo "2103"]
[Result "1-0"]
[Round "06"]
[TimeControl "180+2"]
[Date "2023.05.02"]
[WhiteClock "0:00:13"]
[BlackClock "0:00:16"]

1. Nf3 {[%clk 0:03:00]}  d5 {[%clk 0:02:53]} 2. g3 {[%clk 0:03:00]}  Nf6 {[%clk 0:02:53]} 3. Bg2 {[%clk 0:03:01]}  g6 {[%clk 0:02:54]} 4. b3 {[%clk 0:03:00]}  Bg7 {[%clk 0:02:55]} 5. Bb2 {[%clk 0:03:01]}  O-O {[%clk 0:02:56]} 6. c4 {[%clk 0:03:01]}  c6 {[%clk 0:02:55]} 7. O-O {[%clk 0:03:01]}  Bg4 {[%clk 0:02:54]} 8. d3 {[%clk 0:03:00]}  Qc8 {[%clk 0:02:51]} 9. Re1 {[%clk 0:02:59]}  Bh3 {[%clk 0:02:51]} 10. Bh1 {[%clk 0:02:59]}  h6 {[%clk 0:02:48]} 11. Nbd2 {[%clk 0:02:58]}  Nbd7 {[%clk 0:02:41]} 12. e4 {[%clk 0:02:58]}  dxc4 {[%clk 0:01:50]} 13. dxc4 {[%clk 0:02:53]}  Rd8 {[%clk 0:01:50]} 14. e5 {[%clk 0:02:48]}  Ng4 {[%clk 0:01:41]} 15. Qc2 {[%clk 0:02:46]}  Nc5 {[%clk 0:01:35]} 16. Bc3 {[%clk 0:02:04]}  Nd3 {[%clk 0:01:27]} 17. Re2 {[%clk 0:02:04]}  Qc7 {[%clk 0:00:29]} 18. e6 {[%clk 0:02:02]}  f5 {[%clk 0:00:20]} 19. Bxg7 {[%clk 0:02:00]}  Kxg7 {[%clk 0:00:21]} 20. Qc3+ {[%clk 0:01:58]}  Kh7 {[%clk 0:00:21]} 21. Nh4 {[%clk 0:01:42]}  Qb6 {[%clk 0:00:17]} 22. c5 {[%clk 0:01:26]}  Nxc5 {[%clk 0:00:16]} 23. Nc4 {[%clk 0:01:25]}  Qc7 {[%clk 0:00:14]} 24. Qc2 {[%clk 0:01:02]}  Nd3 {[%clk 0:00:11]} 25. Rd1 {[%clk 0:00:55]}  Nb4 {[%clk 0:00:10]} 26. Qb1 {[%clk 0:00:52]}  Rxd1+ {[%clk 0:00:11]} 27. Qxd1 {[%clk 0:00:53]}  Rd8 {[%clk 0:00:11]} 28. Rd2 {[%clk 0:00:50]}  Nd3 {[%clk 0:00:04]} 29. Rxd3 {[%clk 0:00:44]}  Rxd3 {[%clk 0:00:04]} 30. Qxd3 {[%clk 0:00:44]}  b5 {[%clk 0:00:04]} 31. Ne3 {[%clk 0:00:40]}  Qe5 {[%clk 0:00:05]} 32. Nf3 {[%clk 0:00:22]}  Qa1+ {[%clk 0:00:05]} 33. Qd1 {[%clk 0:00:21]}  Qxa2 {[%clk 0:00:05]} 34. Nxg4 {[%clk 0:00:18]}  Bxg4 {[%clk 0:00:06]} 35. Bg2 {[%clk 0:00:14]}  f4 {[%clk 0:00:03]} 36. h3 {[%clk 0:00:13]}  Bxe6 {[%clk 0:00:03]} 37. gxf4 {[%clk 0:00:13]}  Qxb3 {[%clk 0:00:03]} 38. Qd8 {[%clk 0:00:11]}  Qc4 {[%clk 0:00:02]} 39. Qxe7+ {[%clk 0:00:10]}  Bf7 {[%clk 0:00:02]} 40. Ne5 {[%clk 0:00:10]}  Qc1+ {[%clk 0:00:02]} 41. Bf1 {[%clk 0:00:09]}  Qxf4 {[%clk 0:00:03]} 42. Qxf7+ {[%clk 0:00:09]}  Qxf7 {[%clk 0:00:03]} 43. Nxf7 {[%clk 0:00:10]}  a5 {[%clk 0:00:04]} 44. Ne5 {[%clk 0:00:10]}  a4 {[%clk 0:00:04]} 45. Nxc6 {[%clk 0:00:10]}  a3 {[%clk 0:00:05]} 46. Nb4 {[%clk 0:00:11]}  Kg7 {[%clk 0:00:05]} 47. Bxb5 {[%clk 0:00:11]}  Kf6 {[%clk 0:00:06]} 48. Bc4 {[%clk 0:00:11]}  Ke5 {[%clk 0:00:06]} 49. Nc2 {[%clk 0:00:11]}  Kd6 {[%clk 0:00:06]} 50. Nxa3 {[%clk 0:00:11]}  Kc5 {[%clk 0:00:07]} 51. Bf7 {[%clk 0:00:11]}  Kb4 {[%clk 0:00:07]} 52. Bxg6 {[%clk 0:00:10]}  Kxa3 {[%clk 0:00:07]} 53. f4 {[%clk 0:00:09]}  Kb4 {[%clk 0:00:08]} 54. f5 {[%clk 0:00:10]}  Kc5 {[%clk 0:00:08]} 55. f6 {[%clk 0:00:10]}  Kd6 {[%clk 0:00:09]} 56. Bf5 {[%clk 0:00:10]}  Ke5 {[%clk 0:00:07]} 57. f7 {[%clk 0:00:10]}  Kxf5 {[%clk 0:00:08]} 58. f8=Q+ {[%clk 0:00:11]}  Kg5 {[%clk 0:00:09]} 59. Qg8+ {[%clk 0:00:10]}  Kf6 {[%clk 0:00:09]} 60. Qg4 {[%clk 0:00:09]}  Kf7 {[%clk 0:00:09]} 61. Kg2 {[%clk 0:00:09]}  Kf6 {[%clk 0:00:09]} 62. Kg3 {[%clk 0:00:09]}  Kf7 {[%clk 0:00:10]} 63. Kh4 {[%clk 0:00:10]}  Kf6 {[%clk 0:00:11]} 64. Kh5 {[%clk 0:00:10]}  Kf7 {[%clk 0:00:11]} 65. Kxh6 {[%clk 0:00:10]}  Kf6 {[%clk 0:00:12]} 66. Qf4+ {[%clk 0:00:10]}  Ke6 {[%clk 0:00:12]} 67. Kg5 {[%clk 0:00:10]}  Kd5 {[%clk 0:00:12]} 68. Qe3 {[%clk 0:00:11]}  Kc4 {[%clk 0:00:13]} 69. Qd2 {[%clk 0:00:11]}  Kb3 {[%clk 0:00:13]} 70. Qc1 {[%clk 0:00:11]}  Kb4 {[%clk 0:00:14]} 71. Kf5 {[%clk 0:00:11]}  Kb5 {[%clk 0:00:15]} 72. Ke5 {[%clk 0:00:12]}  Kb6 {[%clk 0:00:15]} 73. Kd5 {[%clk 0:00:12]}  Kb5 {[%clk 0:00:16]} 74. Qb2+ {[%clk 0:00:12]}  Ka4 {[%clk 0:00:16]} 75. Kc5 {[%clk 0:00:12]}  Ka5 {[%clk 0:00:16]} 76. Qa2# {[%clk 0:00:13]} 1-0


[Site "https://www.chess.com"]

[Event "Titled Tuesday Blitz May 2 Early 2023"]
[White "Pujari, Rucha"]
[Black "Isanzhulov, Arystan"]
[WhiteFideId "5024528"]
[BlackFideId "13711644"]
[WhiteElo "2129"]
[BlackElo "2464"]
[Result "1-0"]
[Round "06"]
[TimeControl "180+2"]
[Date "2023.05.02"]
[WhiteClock "0:00:12"]
[BlackClock "0:01:00"]

1. d4 {[%clk 0:03:00]}  f5 {[%clk 0:02:52]} 2. c4 {[%clk 0:03:01]}  Nf6 {[%clk 0:02:51]} 3. Nf3 {[%clk 0:03:01]}  g6 {[%clk 0:02:51]} 4. g3 {[%clk 0:03:02]}  Bg7 {[%clk 0:02:52]} 5. Bg2 {[%clk 0:03:03]}  O-O {[%clk 0:02:53]} 6. O-O {[%clk 0:03:04]}  d6 {[%clk 0:02:53]} 7. Nc3 {[%clk 0:03:04]}  Qe8 {[%clk 0:02:54]} 8. d5 {[%clk 0:03:05]}  e5 {[%clk 0:02:52]} 9. dxe6 {[%clk 0:02:59]}  Bxe6 {[%clk 0:02:51]} 10. Nd4 {[%clk 0:02:58]}  Bc8 {[%clk 0:02:48]} 11. Bg5 {[%clk 0:02:35]}  c6 {[%clk 0:02:46]} 12. Re1 {[%clk 0:02:29]}  h6 {[%clk 0:02:45]} 13. Bf4 {[%clk 0:02:25]}  Qd8 {[%clk 0:02:29]} 14. h4 {[%clk 0:02:19]}  Na6 {[%clk 0:02:26]} 15. Nxc6 {[%clk 0:02:04]}  bxc6 {[%clk 0:02:23]} 16. Bxc6 {[%clk 0:02:05]}  Rb8 {[%clk 0:02:16]} 17. Bxd6 {[%clk 0:02:01]}  Rxb2 {[%clk 0:02:14]} 18. Bxf8 {[%clk 0:02:01]}  Qxf8 {[%clk 0:02:08]} 19. Qc1 {[%clk 0:01:49]}  Rb6 {[%clk 0:02:06]} 20. Bf3 {[%clk 0:01:44]}  Kh7 {[%clk 0:02:06]} 21. Rb1 {[%clk 0:01:39]}  Nc5 {[%clk 0:01:59]} 22. Rb5 {[%clk 0:01:21]}  Ba6 {[%clk 0:01:39]} 23. Rxb6 {[%clk 0:01:09]}  axb6 {[%clk 0:01:40]} 24. Nd5 {[%clk 0:01:08]}  Nfe4 {[%clk 0:01:37]} 25. h5 {[%clk 0:00:56]}  gxh5 {[%clk 0:01:31]} 26. Bxh5 {[%clk 0:00:52]}  Bd4 {[%clk 0:01:30]} 27. e3 {[%clk 0:00:24]}  Nd3 {[%clk 0:01:29]} 28. Qb1 {[%clk 0:00:23]}  Nxe1 {[%clk 0:01:18]} 29. exd4 {[%clk 0:00:23]}  Bxc4 {[%clk 0:01:18]} 30. Nf4 {[%clk 0:00:18]}  Qg7 {[%clk 0:01:10]} 31. Qxe1 {[%clk 0:00:17]}  Qxd4 {[%clk 0:01:10]} 32. Bg6+ {[%clk 0:00:17]}  Kg7 {[%clk 0:01:10]} 33. Bxf5 {[%clk 0:00:15]}  Ng5 {[%clk 0:00:56]} 34. Qe7+ {[%clk 0:00:14]}  Bf7 {[%clk 0:00:57]} 35. Ne6+ {[%clk 0:00:06]}  Nxe6 {[%clk 0:00:43]} 36. Bxe6 {[%clk 0:00:07]}  Qf6 {[%clk 0:00:44]} 37. Qxf7+ {[%clk 0:00:06]}  Qxf7 {[%clk 0:00:45]} 38. Bxf7 {[%clk 0:00:07]}  Kxf7 {[%clk 0:00:45]} 39. Kg2 {[%clk 0:00:07]}  Ke6 {[%clk 0:00:46]} 40. f4 {[%clk 0:00:06]}  Kf5 {[%clk 0:00:46]} 41. Kf3 {[%clk 0:00:06]}  h5 {[%clk 0:00:47]} 42. a4 {[%clk 0:00:06]}  Kf6 {[%clk 0:00:47]} 43. g4 {[%clk 0:00:06]}  hxg4+ {[%clk 0:00:47]} 44. Kxg4 {[%clk 0:00:06]}  Kg6 {[%clk 0:00:48]} 45. Kf3 {[%clk 0:00:06]}  Kf5 {[%clk 0:00:49]} 46. Ke3 {[%clk 0:00:06]}  Kf6 {[%clk 0:00:49]} 47. Ke4 {[%clk 0:00:07]}  Ke6 {[%clk 0:00:50]} 48. f5+ {[%clk 0:00:05]}  Kf6 {[%clk 0:00:50]} 49. Kf4 {[%clk 0:00:05]}  Kf7 {[%clk 0:00:50]} 50. Ke5 {[%clk 0:00:06]}  Ke7 {[%clk 0:00:50]} 51. Kd5 {[%clk 0:00:06]}  Kf6 {[%clk 0:00:51]} 52. Kc6 {[%clk 0:00:07]}  Kxf5 {[%clk 0:00:51]} 53. Kxb6 {[%clk 0:00:07]}  Ke6 {[%clk 0:00:52]} 54. a5 {[%clk 0:00:08]}  Kd7 {[%clk 0:00:53]} 55. Kb7 {[%clk 0:00:08]}  Kd6 {[%clk 0:00:53]} 56. a6 {[%clk 0:00:09]}  Kc5 {[%clk 0:00:53]} 57. a7 {[%clk 0:00:10]}  Kb4 {[%clk 0:00:54]} 58. a8=Q {[%clk 0:00:11]}  Kb5 {[%clk 0:00:55]} 59. Qc8 {[%clk 0:00:10]}  Kb4 {[%clk 0:00:56]} 60. Qc6 {[%clk 0:00:11]}  Ka5 {[%clk 0:00:56]} 61. Qb6+ {[%clk 0:00:10]}  Ka4 {[%clk 0:00:56]} 62. Kc6 {[%clk 0:00:10]}  Ka3 {[%clk 0:00:57]} 63. Kc5 {[%clk 0:00:11]}  Ka2 {[%clk 0:00:58]} 64. Kc4 {[%clk 0:00:11]}  Ka1 {[%clk 0:00:59]} 65. Kc3 {[%clk 0:00:11]}  Ka2 {[%clk 0:01:00]} 66. Qb2# {[%clk 0:00:12]} 1-0


[Site "https://www.chess.com"]

[Event "Titled Tuesday Blitz May 2 Early 2023"]
[White "Dehtiarov, Roman"]
[Black "Sai Han Thiha"]
[WhiteFideId "14186640"]
[BlackFideId "13012290"]
[WhiteElo "2189"]
[BlackElo "1954"]
[Result "0-1"]
[Round "06"]
[TimeControl "180+2"]
[Date "2023.05.02"]
[WhiteClock "0:00:06"]
[BlackClock "0:00:11"]

1. c4 {[%clk 0:03:00]}  Nf6 {[%clk 0:02:59]} 2. Nc3 {[%clk 0:03:01]}  g6 {[%clk 0:03:00]} 3. g3 {[%clk 0:03:01]}  Bg7 {[%clk 0:03:00]} 4. Bg2 {[%clk 0:03:02]}  O-O {[%clk 0:03:01]} 5. e4 {[%clk 0:03:02]}  c5 {[%clk 0:03:01]} 6. Nge2 {[%clk 0:03:03]}  Nc6 {[%clk 0:03:02]} 7. d3 {[%clk 0:03:03]}  Ne8 {[%clk 0:03:01]} 8. O-O {[%clk 0:03:04]}  Nc7 {[%clk 0:03:01]} 9. Be3 {[%clk 0:03:03]}  Ne6 {[%clk 0:03:02]} 10. h3 {[%clk 0:03:01]}  Rb8 {[%clk 0:03:01]} 11. f4 {[%clk 0:03:01]}  Ned4 {[%clk 0:02:55]} 12. Kh2 {[%clk 0:03:00]}  a6 {[%clk 0:02:54]} 13. a4 {[%clk 0:02:59]}  d6 {[%clk 0:02:51]} 14. Rb1 {[%clk 0:02:25]}  Bd7 {[%clk 0:02:33]} 15. g4 {[%clk 0:01:01]}  e6 {[%clk 0:02:32]} 16. Ng3 {[%clk 0:00:55]}  f5 {[%clk 0:02:31]} 17. gxf5 {[%clk 0:00:53]}  exf5 {[%clk 0:02:21]} 18. Nd5 {[%clk 0:00:44]}  Qh4 {[%clk 0:02:10]} 19. Bf2 {[%clk 0:00:36]}  Qh6 {[%clk 0:01:57]} 20. exf5 {[%clk 0:00:30]}  Nxf5 {[%clk 0:01:53]} 21. Nxf5 {[%clk 0:00:23]}  Bxf5 {[%clk 0:01:41]} 22. Bg3 {[%clk 0:00:17]}  Rbe8 {[%clk 0:01:38]} 23. b4 {[%clk 0:00:16]}  cxb4 {[%clk 0:01:26]} 24. Nxb4 {[%clk 0:00:17]}  Nd4 {[%clk 0:01:26]} 25. Nd5 {[%clk 0:00:15]}  Ne2 {[%clk 0:01:25]} 26. Qe1 {[%clk 0:00:12]}  Nxg3 {[%clk 0:00:33]} 27. Qxg3 {[%clk 0:00:13]}  Rf7 {[%clk 0:00:34]} 28. Ne3 {[%clk 0:00:10]}  Bxd3 {[%clk 0:00:32]} 29. Rxb7 {[%clk 0:00:09]}  Rxb7 {[%clk 0:00:31]} 30. Bxb7 {[%clk 0:00:10]}  Bxf1 {[%clk 0:00:30]} 31. Nxf1 {[%clk 0:00:10]}  Qh5 {[%clk 0:00:29]} 32. Bf3 {[%clk 0:00:09]}  Qf5 {[%clk 0:00:27]} 33. Bd5+ {[%clk 0:00:09]}  Kh8 {[%clk 0:00:27]} 34. Ne3 {[%clk 0:00:08]}  Qd3 {[%clk 0:00:27]} 35. Ng2 {[%clk 0:00:08]}  Qxg3+ {[%clk 0:00:21]} 36. Kxg3 {[%clk 0:00:09]}  Bh6 {[%clk 0:00:20]} 37. Kf3 {[%clk 0:00:09]}  a5 {[%clk 0:00:20]} 38. Ne3 {[%clk 0:00:08]}  Rf8 {[%clk 0:00:20]} 39. Ng2 {[%clk 0:00:08]}  Rb8 {[%clk 0:00:20]} 40. Ne3 {[%clk 0:00:08]}  Rf8 {[%clk 0:00:19]} 41. Ng2 {[%clk 0:00:08]}  Kg7 {[%clk 0:00:19]} 42. Kg4 {[%clk 0:00:07]}  Rb8 {[%clk 0:00:16]} 43. Nh4 {[%clk 0:00:05]}  Rb4 {[%clk 0:00:16]} 44. f5 {[%clk 0:00:05]}  Rxa4 {[%clk 0:00:16]} 45. fxg6 {[%clk 0:00:06]}  hxg6 {[%clk 0:00:17]} 46. Nf3 {[%clk 0:00:06]}  Rb4 {[%clk 0:00:17]} 47. Nd4 {[%clk 0:00:06]}  Bc1 {[%clk 0:00:17]} 48. Ne6+ {[%clk 0:00:05]}  Kf6 {[%clk 0:00:17]} 49. Nc7 {[%clk 0:00:05]}  a4 {[%clk 0:00:17]} 50. Kf3 {[%clk 0:00:04]}  a3 {[%clk 0:00:17]} 51. c5 {[%clk 0:00:05]}  dxc5 {[%clk 0:00:15]} 52. Bg8 {[%clk 0:00:05]}  Rb2 {[%clk 0:00:15]} 53. Nd5+ {[%clk 0:00:05]}  Ke5 {[%clk 0:00:15]} 54. Nc3 {[%clk 0:00:06]}  Bd2 {[%clk 0:00:14]} 55. Nd1 {[%clk 0:00:05]}  a2 {[%clk 0:00:13]} 56. Nxb2 {[%clk 0:00:05]}  a1=Q {[%clk 0:00:13]} 57. Nc4+ {[%clk 0:00:05]}  Kd4 {[%clk 0:00:13]} 58. Nxd2 {[%clk 0:00:06]}  Qc3+ {[%clk 0:00:13]} 59. Ke2 {[%clk 0:00:07]}  Qe3+ {[%clk 0:00:13]} 60. Kd1 {[%clk 0:00:07]}  Kd3 {[%clk 0:00:12]} 61. Bc4+ {[%clk 0:00:07]}  Kc3 {[%clk 0:00:12]} 62. Nb1+ {[%clk 0:00:06]}  Kxc4 {[%clk 0:00:12]} 63. h4 {[%clk 0:00:06]}  Kd3 {[%clk 0:00:11]} 0-1


[Site "https://www.chess.com"]

[Event "Titled Tuesday Blitz May 2 Early 2023"]
[White "Shubenkova, Veronika"]
[Black "Iskusnyh, Sergei"]
[WhiteFideId "44124040"]
[BlackFideId "4120027"]
[WhiteElo "2027"]
[BlackElo "2492"]
[Result "0-1"]
[Round "06"]
[TimeControl "180+2"]
[Date "2023.05.02"]
[WhiteClock "0:00:09"]
[BlackClock "0:00:17"]

1. e4 {[%clk 0:03:00]}  e6 {[%clk 0:02:59]} 2. d4 {[%clk 0:03:00]}  d5 {[%clk 0:02:59]} 3. exd5 {[%clk 0:03:00]}  exd5 {[%clk 0:02:58]} 4. Nf3 {[%clk 0:03:01]}  Bd6 {[%clk 0:02:51]} 5. c3 {[%clk 0:03:02]}  c5 {[%clk 0:02:46]} 6. Bd3 {[%clk 0:03:03]}  Nf6 {[%clk 0:02:45]} 7. O-O {[%clk 0:03:02]}  O-O {[%clk 0:02:44]} 8. Nbd2 {[%clk 0:03:01]}  Nc6 {[%clk 0:02:42]} 9. dxc5 {[%clk 0:03:00]}  Bxc5 {[%clk 0:02:42]} 10. Nb3 {[%clk 0:03:00]}  Bb6 {[%clk 0:02:43]} 11. h3 {[%clk 0:02:59]}  Ne4 {[%clk 0:02:39]} 12. Bf4 {[%clk 0:02:57]}  Qf6 {[%clk 0:02:37]} 13. Qc1 {[%clk 0:02:44]}  Bf5 {[%clk 0:02:24]} 14. Be3 {[%clk 0:02:25]}  Nxc3 {[%clk 0:01:59]} 15. bxc3 {[%clk 0:02:17]}  Bxd3 {[%clk 0:01:58]} 16. Rd1 {[%clk 0:02:17]}  Be2 {[%clk 0:01:56]} 17. Rxd5 {[%clk 0:02:14]}  Bxf3 {[%clk 0:01:55]} 18. gxf3 {[%clk 0:02:12]}  Qxf3 {[%clk 0:01:54]} 19. Rg5 {[%clk 0:01:50]}  Bxe3 {[%clk 0:01:49]} 20. Qxe3 {[%clk 0:01:50]}  Qxe3 {[%clk 0:01:48]} 21. fxe3 {[%clk 0:01:51]}  Rfe8 {[%clk 0:01:48]} 22. Kf2 {[%clk 0:01:50]}  Ne5 {[%clk 0:01:43]} 23. Rag1 {[%clk 0:01:49]}  g6 {[%clk 0:01:43]} 24. Nc5 {[%clk 0:01:41]}  Rac8 {[%clk 0:01:18]} 25. Ne4 {[%clk 0:01:34]}  Rc6 {[%clk 0:01:18]} 26. Rd1 {[%clk 0:01:28]}  Kg7 {[%clk 0:01:09]} 27. Nd6 {[%clk 0:01:20]}  Re6 {[%clk 0:00:58]} 28. Nxb7 {[%clk 0:01:03]}  Rxc3 {[%clk 0:00:57]} 29. Rg3 {[%clk 0:00:48]}  Rc2+ {[%clk 0:00:50]} 30. Kg1 {[%clk 0:00:46]}  Rf6 {[%clk 0:00:46]} 31. Rf1 {[%clk 0:00:41]}  Rxf1+ {[%clk 0:00:46]} 32. Kxf1 {[%clk 0:00:41]}  Rxa2 {[%clk 0:00:46]} 33. Nd6 {[%clk 0:00:34]}  a5 {[%clk 0:00:44]} 34. e4 {[%clk 0:00:33]}  a4 {[%clk 0:00:42]} 35. Ne8+ {[%clk 0:00:20]}  Kf8 {[%clk 0:00:40]} 36. Nf6 {[%clk 0:00:20]}  h5 {[%clk 0:00:37]} 37. Nd5 {[%clk 0:00:19]}  Nc4 {[%clk 0:00:29]} 38. Rc3 {[%clk 0:00:18]}  Nd2+ {[%clk 0:00:28]} 39. Ke1 {[%clk 0:00:18]}  Nxe4 {[%clk 0:00:27]} 40. Rc8+ {[%clk 0:00:17]}  Kg7 {[%clk 0:00:27]} 41. Re8 {[%clk 0:00:17]}  Ng5 {[%clk 0:00:23]} 42. h4 {[%clk 0:00:16]}  Nf3+ {[%clk 0:00:23]} 43. Kf1 {[%clk 0:00:16]}  Nh2+ {[%clk 0:00:21]} 44. Kg1 {[%clk 0:00:12]}  Nf3+ {[%clk 0:00:21]} 45. Kf1 {[%clk 0:00:13]}  Nxh4 {[%clk 0:00:22]} 46. Ra8 {[%clk 0:00:12]}  Nf5 {[%clk 0:00:22]} 47. Ra7 {[%clk 0:00:12]}  a3 {[%clk 0:00:21]} 48. Nf4 {[%clk 0:00:11]}  Ne3+ {[%clk 0:00:20]} 49. Kg1 {[%clk 0:00:11]}  Nc4 {[%clk 0:00:19]} 50. Ne6+ {[%clk 0:00:10]}  Kf6 {[%clk 0:00:19]} 51. Nd4 {[%clk 0:00:10]}  Rd2 {[%clk 0:00:18]} 52. Nb3 {[%clk 0:00:10]}  Rb2 {[%clk 0:00:17]} 53. Nc5 {[%clk 0:00:09]}  a2 {[%clk 0:00:17]} 54. Ra6+ {[%clk 0:00:09]}  Kg7 {[%clk 0:00:17]} 0-1


[Site "https://www.chess.com"]

[Event "Titled Tuesday Blitz May 2 Early 2023"]
[White "Janaszak, Dawid"]
[Black "Bashkansky, Ethan"]
[WhiteFideId "1119206"]
[BlackFideId "2071533"]
[WhiteElo "2220"]
[BlackElo "2101"]
[Result "1-0"]
[Round "06"]
[TimeControl "180+2"]
[Date "2023.05.02"]
[WhiteClock "0:01:28"]
[BlackClock "0:00:06"]

1. e4 {[%clk 0:02:57]}  c6 {[%clk 0:03:00]} 2. b3 {[%clk 0:02:53]}  d5 {[%clk 0:03:01]} 3. Bb2 {[%clk 0:02:53]}  dxe4 {[%clk 0:02:56]} 4. Nc3 {[%clk 0:02:53]}  Nf6 {[%clk 0:02:55]} 5. Qe2 {[%clk 0:02:53]}  Bf5 {[%clk 0:02:40]} 6. O-O-O {[%clk 0:02:53]}  Nbd7 {[%clk 0:02:35]} 7. h3 {[%clk 0:02:52]}  h5 {[%clk 0:02:18]} 8. f3 {[%clk 0:02:52]}  Nc5 {[%clk 0:02:09]} 9. Qf2 {[%clk 0:02:48]}  e6 {[%clk 0:02:00]} 10. g4 {[%clk 0:02:45]}  hxg4 {[%clk 0:01:58]} 11. fxg4 {[%clk 0:02:46]}  Nxg4 {[%clk 0:01:47]} 12. hxg4 {[%clk 0:02:44]}  Rxh1 {[%clk 0:01:46]} 13. gxf5 {[%clk 0:02:44]}  exf5 {[%clk 0:01:47]} 14. Bg2 {[%clk 0:02:39]}  Rh5 {[%clk 0:01:47]} 15. Nge2 {[%clk 0:02:37]}  g6 {[%clk 0:01:40]} 16. Nf4 {[%clk 0:02:33]}  Rh7 {[%clk 0:01:30]} 17. d3 {[%clk 0:02:33]}  exd3 {[%clk 0:01:25]} 18. Nxd3 {[%clk 0:02:33]}  Nxd3+ {[%clk 0:01:23]} 19. Rxd3 {[%clk 0:02:29]}  Qg5+ {[%clk 0:01:20]} 20. Kb1 {[%clk 0:02:27]}  Be7 {[%clk 0:01:03]} 21. Bc1 {[%clk 0:02:20]}  Qg4 {[%clk 0:00:50]} 22. Bf3 {[%clk 0:02:00]}  Qh4 {[%clk 0:00:46]} 23. Qe2 {[%clk 0:02:00]}  Kf8 {[%clk 0:00:37]} 24. Rd7 {[%clk 0:01:52]}  Qf6 {[%clk 0:00:25]} 25. Rxb7 {[%clk 0:01:43]}  Re8 {[%clk 0:00:18]} 26. Qc4 {[%clk 0:01:35]}  Rh3 {[%clk 0:00:17]} 27. Qxc6 {[%clk 0:01:28]}  Qxc6 {[%clk 0:00:13]} 28. Bxc6 {[%clk 0:01:28]}  Rc8 {[%clk 0:00:10]} 29. Nd5 {[%clk 0:01:29]}  Rxc6 {[%clk 0:00:07]} 30. Nxe7 {[%clk 0:01:28]}  Rh2 {[%clk 0:00:06]} 31. Nxc6 {[%clk 0:01:28]} 1-0


[Site "https://www.chess.com"]

[Event "Titled Tuesday Blitz May 2 Early 2023"]
[White "Myers, Dominique"]
[Black "Vitenberg, Noam Aviv"]
[WhiteFideId "2041715"]
[BlackFideId "1532138"]
[WhiteElo "1934"]
[BlackElo "2236"]
[Result "0-1"]
[Round "06"]
[TimeControl "180+2"]
[Date "2023.05.02"]
[WhiteClock "0:01:09"]
[BlackClock "0:00:06"]

1. e4 {[%clk 0:02:59]}  a6 {[%clk 0:02:59]} 2. d4 {[%clk 0:02:58]}  b5 {[%clk 0:02:59]} 3. Bd3 {[%clk 0:02:59]}  Bb7 {[%clk 0:02:59]} 4. Qe2 {[%clk 0:02:59]}  e6 {[%clk 0:02:59]} 5. Nd2 {[%clk 0:02:59]}  Nf6 {[%clk 0:02:59]} 6. f4 {[%clk 0:02:59]}  d5 {[%clk 0:02:57]} 7. e5 {[%clk 0:02:58]}  Nfd7 {[%clk 0:02:56]} 8. Ngf3 {[%clk 0:02:57]}  c5 {[%clk 0:02:55]} 9. c3 {[%clk 0:02:57]}  Nc6 {[%clk 0:02:55]} 10. O-O {[%clk 0:02:57]}  Qb6 {[%clk 0:02:53]} 11. f5 {[%clk 0:02:48]}  cxd4 {[%clk 0:02:51]} 12. cxd4 {[%clk 0:02:46]}  Nxd4 {[%clk 0:02:50]} 13. Nxd4 {[%clk 0:02:41]}  Qxd4+ {[%clk 0:02:51]} 14. Kh1 {[%clk 0:02:40]}  Nxe5 {[%clk 0:02:33]} 15. fxe6 {[%clk 0:02:38]}  fxe6 {[%clk 0:02:30]} 16. Nf3 {[%clk 0:02:31]}  Qxd3 {[%clk 0:02:30]} 17. Qe1 {[%clk 0:02:24]}  Nxf3 {[%clk 0:02:25]} 18. Qxe6+ {[%clk 0:02:24]}  Be7 {[%clk 0:02:25]} 19. Bf4 {[%clk 0:02:14]}  Nd4 {[%clk 0:02:09]} 20. Qb6 {[%clk 0:01:55]}  O-O {[%clk 0:02:08]} 21. Qxb7 {[%clk 0:01:53]}  Nf5 {[%clk 0:01:56]} 22. Rad1 {[%clk 0:01:48]}  Qc4 {[%clk 0:01:50]} 23. b3 {[%clk 0:01:44]}  Qe4 {[%clk 0:01:33]} 24. Rde1 {[%clk 0:01:42]}  Qd3 {[%clk 0:00:48]} 25. Rd1 {[%clk 0:01:41]}  Qc2 {[%clk 0:00:45]} 26. Qxd5+ {[%clk 0:01:41]}  Kh8 {[%clk 0:00:45]} 27. Rd2 {[%clk 0:01:40]}  Qc5 {[%clk 0:00:41]} 28. Qe4 {[%clk 0:01:40]}  Rae8 {[%clk 0:00:39]} 29. Qb1 {[%clk 0:01:37]}  Qb4 {[%clk 0:00:34]} 30. Re2 {[%clk 0:01:34]}  Nd4 {[%clk 0:00:29]} 31. Re4 {[%clk 0:01:32]}  Bf6 {[%clk 0:00:23]} 32. Be3 {[%clk 0:01:26]}  Qc3 {[%clk 0:00:09]} 33. Rc1 {[%clk 0:01:15]}  Qxe3 {[%clk 0:00:03]} 34. Rxe3 {[%clk 0:01:15]}  Rxe3 {[%clk 0:00:04]} 35. h3 {[%clk 0:01:15]}  Rfe8 {[%clk 0:00:04]} 36. Rf1 {[%clk 0:01:12]}  Ne2 {[%clk 0:00:03]} 37. Qf5 {[%clk 0:01:08]}  Ng3+ {[%clk 0:00:03]} 38. Kh2 {[%clk 0:01:08]}  Nxf5 {[%clk 0:00:04]} 39. Rxf5 {[%clk 0:01:09]}  Be5+ {[%clk 0:00:05]} 40. g3 {[%clk 0:01:09]}  Re2+ {[%clk 0:00:05]} 41. Kg1 {[%clk 0:01:10]}  Bf6 {[%clk 0:00:06]} 42. h4 {[%clk 0:01:08]}  Rb2 {[%clk 0:00:07]} 43. Rf1 {[%clk 0:01:08]}  Rc8 {[%clk 0:00:06]} 44. a4 {[%clk 0:01:08]}  Rcc2 {[%clk 0:00:07]} 45. axb5 {[%clk 0:01:09]}  Rg2+ {[%clk 0:00:06]} 0-1


[Site "https://www.chess.com"]

[Event "Titled Tuesday Blitz May 2 Early 2023"]
[White "Pham, Le Thao Nguyen"]
[Black "Toktomushev, Teimur"]
[WhiteFideId "12401226"]
[BlackFideId "14176726"]
[WhiteElo "2286"]
[BlackElo "2116"]
[Result "1-0"]
[Round "06"]
[TimeControl "180+2"]
[Date "2023.05.02"]
[WhiteClock "0:01:06"]
[BlackClock "0:00:01"]

1. d4 {[%clk 0:03:00]}  d5 {[%clk 0:02:57]} 2. Nf3 {[%clk 0:03:00]}  Nf6 {[%clk 0:02:55]} 3. c4 {[%clk 0:03:00]}  e6 {[%clk 0:02:54]} 4. Nc3 {[%clk 0:02:58]}  Be7 {[%clk 0:02:54]} 5. Bg5 {[%clk 0:02:59]}  O-O {[%clk 0:02:53]} 6. e3 {[%clk 0:02:59]}  h6 {[%clk 0:02:46]} 7. Bh4 {[%clk 0:02:51]}  b6 {[%clk 0:02:45]} 8. cxd5 {[%clk 0:02:50]}  Nxd5 {[%clk 0:02:42]} 9. Bxe7 {[%clk 0:02:49]}  Qxe7 {[%clk 0:02:42]} 10. Nxd5 {[%clk 0:02:49]}  exd5 {[%clk 0:02:43]} 11. Qd2 {[%clk 0:02:48]}  Bb7 {[%clk 0:02:39]} 12. Bd3 {[%clk 0:02:41]}  c5 {[%clk 0:02:36]} 13. O-O {[%clk 0:02:28]}  Nd7 {[%clk 0:02:29]} 14. Rac1 {[%clk 0:02:20]}  Rac8 {[%clk 0:02:06]} 15. Bf5 {[%clk 0:02:16]}  Rc7 {[%clk 0:01:58]} 16. Rfd1 {[%clk 0:02:06]}  Rd8 {[%clk 0:01:38]} 17. h3 {[%clk 0:01:58]}  g6 {[%clk 0:01:26]} 18. Bxd7 {[%clk 0:01:46]}  Rdxd7 {[%clk 0:01:23]} 19. b3 {[%clk 0:01:42]}  Rd8 {[%clk 0:00:34]} 20. a4 {[%clk 0:01:39]}  Qf6 {[%clk 0:00:26]} 21. a5 {[%clk 0:01:35]}  Rd6 {[%clk 0:00:14]} 22. Rc2 {[%clk 0:01:24]}  Rdc6 {[%clk 0:00:05]} 23. Ne5 {[%clk 0:01:18]}  Rd6 {[%clk 0:00:04]} 24. Rdc1 {[%clk 0:01:18]}  Qf5 {[%clk 0:00:02]} 25. Ng4 {[%clk 0:01:14]}  Kg7 {[%clk 0:00:01]} 26. dxc5 {[%clk 0:01:14]}  bxc5 {[%clk 0:00:02]} 27. Rxc5 {[%clk 0:01:15]}  Rxc5 {[%clk 0:00:02]} 28. Qd4+ {[%clk 0:01:13]}  f6 {[%clk 0:00:02]} 29. Qxc5 {[%clk 0:01:10]}  Qd7 {[%clk 0:00:01]} 30. Qxa7 {[%clk 0:01:06]} 1-0


[Site "https://www.chess.com"]